[Event "Titled Tuesday Blitz March 08 Late 2022"]
[White "Papasimakopoulos, Alexandros"]
[Black "Golubev, Mikhail"]
[WhiteFideId "4244125"]
[BlackFideId "14100983"]
[WhiteElo "2340"]
[BlackElo "2374"]
[Result "0-1"]
[Round "11"]
[TimeControl "180+1"]
[Date "2022.03.08"]
[WhiteClock "0:00:31"]
[BlackClock "0:00:44"]

1. d4 {[%clk 0:02:35]}  Nf6 {[%clk 0:02:59]} 2. c4 {[%clk 0:02:35]}  g6 {[%clk 0:02:59]} 3. Nc3 {[%clk 0:02:31]}  Bg7 {[%clk 0:02:59]} 4. e4 {[%clk 0:02:29]}  d6 {[%clk 0:02:59]} 5. Nge2 {[%clk 0:02:27]}  Nbd7 {[%clk 0:02:53]} 6. Ng3 {[%clk 0:02:27]}  e5 {[%clk 0:02:48]} 7. d5 {[%clk 0:02:27]}  h5 {[%clk 0:02:47]} 8. h4 {[%clk 0:02:27]}  a5 {[%clk 0:02:32]} 9. Be2 {[%clk 0:02:27]}  Nc5 {[%clk 0:02:24]} 10. Be3 {[%clk 0:02:16]}  Bh6 {[%clk 0:02:24]} 11. Bxh6 {[%clk 0:02:04]}  Rxh6 {[%clk 0:02:25]} 12. Qd2 {[%clk 0:02:03]}  Rh8 {[%clk 0:02:17]} 13. Rb1 {[%clk 0:02:04]}  Kf8 {[%clk 0:02:13]} 14. b3 {[%clk 0:02:04]}  Kg7 {[%clk 0:02:10]} 15. a3 {[%clk 0:02:05]}  a4 {[%clk 0:02:07]} 16. b4 {[%clk 0:02:05]}  Nb3 {[%clk 0:02:07]} 17. Qg5 {[%clk 0:02:05]}  Nd4 {[%clk 0:02:05]} 18. Bd3 {[%clk 0:01:59]}  Bd7 {[%clk 0:01:42]} 19. Nf5+ {[%clk 0:01:51]}  Nxf5 {[%clk 0:01:17]} 20. exf5 {[%clk 0:01:52]}  e4 {[%clk 0:01:17]} 21. Bxe4 {[%clk 0:01:28]}  Nxe4 {[%clk 0:01:13]} 22. Nxe4 {[%clk 0:01:29]}  Bxf5 {[%clk 0:01:13]} 23. Qxd8 {[%clk 0:01:16]}  Raxd8 {[%clk 0:01:09]} 24. f3 {[%clk 0:01:17]}  Rhe8 {[%clk 0:01:09]} 25. Kd2 {[%clk 0:01:07]}  Bxe4 {[%clk 0:01:10]} 26. fxe4 {[%clk 0:01:07]}  Rxe4 {[%clk 0:01:10]} 27. Kd3 {[%clk 0:01:07]}  Rde8 {[%clk 0:01:09]} 28. Rh3 {[%clk 0:01:06]}  Re2 {[%clk 0:01:06]} 29. c5 {[%clk 0:01:03]}  Rxg2 {[%clk 0:01:03]} 30. cxd6 {[%clk 0:01:03]}  cxd6 {[%clk 0:01:03]} 31. Rc1 {[%clk 0:01:04]}  Ree2 {[%clk 0:01:02]} 32. Rc7 {[%clk 0:01:02]}  Rd2+ {[%clk 0:01:02]} 33. Ke3 {[%clk 0:01:03]}  Rge2+ {[%clk 0:01:01]} 34. Kf3 {[%clk 0:01:02]}  Re5 {[%clk 0:00:58]} 35. Rh1 {[%clk 0:00:59]}  b5 {[%clk 0:00:56]} 36. Rb7 {[%clk 0:01:00]}  Rexd5 {[%clk 0:00:55]} 37. Re1 {[%clk 0:01:00]}  R2d3+ {[%clk 0:00:54]} 38. Ke4 {[%clk 0:01:00]}  R3d4+ {[%clk 0:00:53]} 39. Kf3 {[%clk 0:01:00]}  Rxh4 {[%clk 0:00:53]} 40. Ree7 {[%clk 0:00:55]}  Rf5+ {[%clk 0:00:53]} 41. Kg3 {[%clk 0:00:55]}  Rg4+ {[%clk 0:00:53]} 42. Kh3 {[%clk 0:00:55]}  Rc4 {[%clk 0:00:51]} 43. Re3 {[%clk 0:00:54]}  g5 {[%clk 0:00:50]} 44. Rd3 {[%clk 0:00:54]}  g4+ {[%clk 0:00:50]} 45. Kh4 {[%clk 0:00:54]}  Rc1 {[%clk 0:00:48]} 46. Rxd6 {[%clk 0:00:47]}  Rc3 {[%clk 0:00:46]} 47. Rdb6 {[%clk 0:00:31]}  Rh3# {[%clk 0:00:44]} 0-1


[Site "https://www.chess.com"]

[Event "Titled Tuesday Blitz March 08 Late 2022"]
[White "Petrovic, Aleksa"]
[Black "Chiu, Isaac"]
[WhiteFideId "967629"]
[BlackFideId "30900654"]
[WhiteElo "2497"]
[BlackElo "2596"]
[Result "1-0"]
[Round "11"]
[TimeControl "180+1"]
[Date "2022.03.09"]
[WhiteClock "0:00:19"]
[BlackClock "0:00:12"]

1. d4 {[%clk 0:02:59]}  e5 {[%clk 0:02:59]} 2. dxe5 {[%clk 0:02:57]}  Nc6 {[%clk 0:02:59]} 3. Nf3 {[%clk 0:02:56]}  Qe7 {[%clk 0:03:00]} 4. Nc3 {[%clk 0:02:55]}  Nxe5 {[%clk 0:02:50]} 5. e4 {[%clk 0:02:55]}  Nxf3+ {[%clk 0:02:48]} 6. Qxf3 {[%clk 0:02:53]}  d6 {[%clk 0:02:48]} 7. Nd5 {[%clk 0:02:50]}  Qd8 {[%clk 0:02:47]} 8. Bc4 {[%clk 0:02:44]}  Be6 {[%clk 0:02:47]} 9. Bd2 {[%clk 0:02:09]}  c6 {[%clk 0:02:42]} 10. Ne3 {[%clk 0:01:55]}  Bxc4 {[%clk 0:02:38]} 11. Nxc4 {[%clk 0:01:56]}  Nf6 {[%clk 0:02:38]} 12. O-O-O {[%clk 0:01:52]}  Qc7 {[%clk 0:02:37]} 13. Bg5 {[%clk 0:01:33]}  Be7 {[%clk 0:02:30]} 14. Bxf6 {[%clk 0:01:31]}  Bxf6 {[%clk 0:02:31]} 15. Nxd6+ {[%clk 0:01:29]}  Kf8 {[%clk 0:02:31]} 16. Rhe1 {[%clk 0:01:15]}  Rd8 {[%clk 0:02:00]} 17. e5 {[%clk 0:00:44]}  Bxe5 {[%clk 0:01:52]} 18. Rxe5 {[%clk 0:00:45]}  Rxd6 {[%clk 0:01:52]} 19. Qa3 {[%clk 0:00:44]}  c5 {[%clk 0:01:48]} 20. Rxc5 {[%clk 0:00:32]}  Rxd1+ {[%clk 0:01:47]} 21. Kxd1 {[%clk 0:00:33]}  Qd6+ {[%clk 0:01:42]} 22. Ke2 {[%clk 0:00:22]}  Qe7+ {[%clk 0:01:28]} 23. Kf1 {[%clk 0:00:19]}  Qe1+ {[%clk 0:00:12]} 1-0


[Site "https://www.chess.com"]

[Event "Titled Tuesday Blitz March 08 Late 2022"]
[White "Przybylski, Wojciech"]
[Black "Antonova, Nadezhda"]
[WhiteFideId "1117599"]
[BlackFideId "14700182"]
[WhiteElo "2133"]
[BlackElo "1751"]
[Result "1-0"]
[Round "11"]
[TimeControl "180+1"]
[Date "2022.03.09"]
[WhiteClock "0:01:34"]
[BlackClock "0:01:26"]

1. e4 {[%clk 0:03:00]}  c5 {[%clk 0:02:59]} 2. Nf3 {[%clk 0:02:58]}  d6 {[%clk 0:02:59]} 3. d4 {[%clk 0:02:58]}  cxd4 {[%clk 0:03:00]} 4. Nxd4 {[%clk 0:02:58]}  Nf6 {[%clk 0:03:01]} 5. Nc3 {[%clk 0:02:59]}  a6 {[%clk 0:03:01]} 6. Be3 {[%clk 0:02:55]}  e5 {[%clk 0:03:00]} 7. Nb3 {[%clk 0:02:54]}  Be6 {[%clk 0:03:00]} 8. f3 {[%clk 0:02:54]}  Be7 {[%clk 0:02:59]} 9. Qd2 {[%clk 0:02:54]}  h5 {[%clk 0:02:58]} 10. O-O-O {[%clk 0:02:54]}  Nbd7 {[%clk 0:02:58]} 11. Nd5 {[%clk 0:02:54]}  Nxd5 {[%clk 0:02:56]} 12. exd5 {[%clk 0:02:55]}  Bf5 {[%clk 0:02:57]} 13. Bd3 {[%clk 0:02:54]}  Bxd3 {[%clk 0:02:55]} 14. Qxd3 {[%clk 0:02:55]}  Rc8 {[%clk 0:02:54]} 15. Kb1 {[%clk 0:02:51]}  Qc7 {[%clk 0:02:50]} 16. f4 {[%clk 0:02:40]}  exf4 {[%clk 0:02:45]} 17. Bxf4 {[%clk 0:02:39]}  O-O {[%clk 0:02:46]} 18. Nd4 {[%clk 0:02:33]}  g6 {[%clk 0:02:38]} 19. Ne6 {[%clk 0:02:25]}  Nc5 {[%clk 0:02:10]} 20. Nxc5 {[%clk 0:02:17]}  Qxc5 {[%clk 0:02:10]} 21. Be3 {[%clk 0:02:15]}  Qc7 {[%clk 0:02:05]} 22. Bd4 {[%clk 0:02:15]}  Bg5 {[%clk 0:02:00]} 23. h4 {[%clk 0:02:13]}  Bh6 {[%clk 0:01:59]} 24. g4 {[%clk 0:02:13]}  hxg4 {[%clk 0:01:56]} 25. h5 {[%clk 0:02:13]}  Bg7 {[%clk 0:01:52]} 26. hxg6 {[%clk 0:02:10]}  fxg6 {[%clk 0:01:47]} 27. Qxg6 {[%clk 0:02:06]}  Rf4 {[%clk 0:01:39]} 28. Bxg7 {[%clk 0:01:35]}  Qxg7 {[%clk 0:01:26]} 29. Qe6+ {[%clk 0:01:34]} 1-0


[Site "https://www.chess.com"]

[Event "Titled Tuesday Blitz March 08 Late 2022"]
[White "Sarkar, Justin"]
[Black "Rosen, Eric"]
[WhiteFideId "2010011"]
[BlackFideId "2032562"]
[WhiteElo "2304"]
[BlackElo "2601"]
[Result "0-1"]
[Round "11"]
[TimeControl "180+1"]
[Date "2022.03.09"]
[WhiteClock "0:00:07"]
[BlackClock "0:00:40"]

1. e4 {[%clk 0:02:59]}  e5 {[%clk 0:02:54]} 2. Nc3 {[%clk 0:02:58]}  Nf6 {[%clk 0:02:54]} 3. Bc4 {[%clk 0:02:57]}  Nc6 {[%clk 0:02:49]} 4. d3 {[%clk 0:02:53]}  Na5 {[%clk 0:02:47]} 5. Nge2 {[%clk 0:02:48]}  Nxc4 {[%clk 0:02:47]} 6. dxc4 {[%clk 0:02:48]}  d6 {[%clk 0:02:46]} 7. O-O {[%clk 0:02:44]}  Be7 {[%clk 0:02:47]} 8. Ng3 {[%clk 0:02:40]}  O-O {[%clk 0:02:46]} 9. a4 {[%clk 0:02:35]}  Be6 {[%clk 0:02:45]} 10. b3 {[%clk 0:02:34]}  c6 {[%clk 0:02:42]} 11. Qf3 {[%clk 0:02:22]}  Re8 {[%clk 0:02:42]} 12. Nf5 {[%clk 0:02:15]}  Bxf5 {[%clk 0:02:38]} 13. Qxf5 {[%clk 0:02:11]}  Qd7 {[%clk 0:02:37]} 14. Qxd7 {[%clk 0:01:53]}  Nxd7 {[%clk 0:02:38]} 15. a5 {[%clk 0:01:53]}  a6 {[%clk 0:02:35]} 16. Be3 {[%clk 0:01:52]}  Nf8 {[%clk 0:02:31]} 17. Na4 {[%clk 0:01:48]}  Ne6 {[%clk 0:02:28]} 18. Rfd1 {[%clk 0:01:43]}  Rad8 {[%clk 0:02:27]} 19. f3 {[%clk 0:01:42]}  g6 {[%clk 0:02:27]} 20. Bb6 {[%clk 0:01:39]}  Rd7 {[%clk 0:02:26]} 21. Nc5 {[%clk 0:01:34]}  Nxc5 {[%clk 0:02:17]} 22. Bxc5 {[%clk 0:01:34]}  f5 {[%clk 0:02:14]} 23. Rd3 {[%clk 0:01:29]}  Kf7 {[%clk 0:02:11]} 24. Rad1 {[%clk 0:01:24]}  Ke6 {[%clk 0:02:10]} 25. Bb6 {[%clk 0:01:15]}  h5 {[%clk 0:02:02]} 26. Kf2 {[%clk 0:01:04]}  Rf8 {[%clk 0:02:01]} 27. Ke2 {[%clk 0:01:02]}  fxe4 {[%clk 0:01:52]} 28. fxe4 {[%clk 0:01:02]}  Rf4 {[%clk 0:01:52]} 29. Re3 {[%clk 0:00:52]}  Bg5 {[%clk 0:01:46]} 30. g3 {[%clk 0:00:46]}  Rg4 {[%clk 0:01:13]} 31. Red3 {[%clk 0:00:43]}  Rxe4+ {[%clk 0:00:46]} 32. Kf3 {[%clk 0:00:41]}  d5 {[%clk 0:00:47]} 33. cxd5+ {[%clk 0:00:34]}  cxd5 {[%clk 0:00:47]} 34. c4 {[%clk 0:00:29]}  Rf7+ {[%clk 0:00:44]} 35. Kg2 {[%clk 0:00:26]}  Re2+ {[%clk 0:00:40]} 36. Kh1 {[%clk 0:00:07]}  d4 {[%clk 0:00:40]} 0-1


[Site "https://www.chess.com"]

[Event "Titled Tuesday Blitz March 08 Late 2022"]
[White "Supatashvili, Khvicha"]
[Black "Khabinets, Ivan"]
[WhiteFideId "13600664"]
[BlackFideId "14115980"]
[WhiteElo "2686"]
[BlackElo "2114"]
[Result "1-0"]
[Round "11"]
[TimeControl "180+1"]
[Date "2022.03.08"]
[WhiteClock "0:00:50"]
[BlackClock "0:00:10"]

1. e4 {[%clk 0:03:00]}  c5 {[%clk 0:03:00]} 2. Nf3 {[%clk 0:03:00]}  d6 {[%clk 0:03:00]} 3. Bb5+ {[%clk 0:03:00]}  Nd7 {[%clk 0:03:00]} 4. c3 {[%clk 0:02:59]}  Nf6 {[%clk 0:03:00]} 5. Bd3 {[%clk 0:02:58]}  b6 {[%clk 0:02:58]} 6. O-O {[%clk 0:02:52]}  Bb7 {[%clk 0:02:58]} 7. Qe2 {[%clk 0:02:52]}  e6 {[%clk 0:02:58]} 8. Bc2 {[%clk 0:02:52]}  Rc8 {[%clk 0:02:57]} 9. d4 {[%clk 0:02:51]}  Be7 {[%clk 0:02:56]} 10. Re1 {[%clk 0:02:40]}  O-O {[%clk 0:02:55]} 11. Bf4 {[%clk 0:02:39]}  Qc7 {[%clk 0:02:47]} 12. e5 {[%clk 0:02:35]}  Nd5 {[%clk 0:02:43]} 13. Bg5 {[%clk 0:02:24]}  dxe5 {[%clk 0:02:16]} 14. dxe5 {[%clk 0:02:19]}  Nxe5 {[%clk 0:02:00]} 15. Qxe5 {[%clk 0:02:13]}  Qxe5 {[%clk 0:02:00]} 16. Rxe5 {[%clk 0:02:13]}  f6 {[%clk 0:02:01]} 17. Rxd5 {[%clk 0:02:08]}  exd5 {[%clk 0:01:50]} 18. Bf4 {[%clk 0:02:05]}  g5 {[%clk 0:01:48]} 19. Be3 {[%clk 0:02:04]}  h6 {[%clk 0:01:42]} 20. Bf5 {[%clk 0:02:01]}  Rcd8 {[%clk 0:01:42]} 21. Nbd2 {[%clk 0:02:01]}  Kg7 {[%clk 0:01:41]} 22. Nf1 {[%clk 0:01:54]}  Bd6 {[%clk 0:01:41]} 23. Ng3 {[%clk 0:01:54]}  Bxg3 {[%clk 0:01:36]} 24. hxg3 {[%clk 0:01:54]}  Bc8 {[%clk 0:01:36]} 25. Bc2 {[%clk 0:01:47]}  Rfe8 {[%clk 0:01:34]} 26. b4 {[%clk 0:01:43]}  g4 {[%clk 0:01:02]} 27. Nd2 {[%clk 0:01:41]}  d4 {[%clk 0:01:00]} 28. cxd4 {[%clk 0:01:41]}  cxd4 {[%clk 0:01:00]} 29. Bf4 {[%clk 0:01:41]}  d3 {[%clk 0:00:50]} 30. Bb3 {[%clk 0:01:40]}  Be6 {[%clk 0:00:50]} 31. Ba4 {[%clk 0:01:36]}  Bd7 {[%clk 0:00:50]} 32. Bxd7 {[%clk 0:01:33]}  Rxd7 {[%clk 0:00:51]} 33. Rc1 {[%clk 0:01:32]}  Rde7 {[%clk 0:00:40]} 34. Kf1 {[%clk 0:01:30]}  Kg6 {[%clk 0:00:38]} 35. a3 {[%clk 0:01:30]}  h5 {[%clk 0:00:38]} 36. Be3 {[%clk 0:01:27]}  Rd7 {[%clk 0:00:36]} 37. Rc6 {[%clk 0:01:21]}  Re5 {[%clk 0:00:34]} 38. Ke1 {[%clk 0:01:18]}  Rb5 {[%clk 0:00:26]} 39. Nc4 {[%clk 0:01:13]}  Rbd5 {[%clk 0:00:22]} 40. Kd2 {[%clk 0:01:12]}  Rf5 {[%clk 0:00:18]} 41. Bf4 {[%clk 0:00:57]}  Rfd5 {[%clk 0:00:16]} 42. Ne5+ {[%clk 0:00:56]}  Rxe5 {[%clk 0:00:08]} 43. Bxe5 {[%clk 0:00:55]}  Re7 {[%clk 0:00:09]} 44. Bxf6 {[%clk 0:00:52]}  Re2+ {[%clk 0:00:09]} 45. Kxd3 {[%clk 0:00:52]}  Ra2 {[%clk 0:00:09]} 46. Bb2+ {[%clk 0:00:50]}  Kf5 {[%clk 0:00:10]} 47. Kc2 {[%clk 0:00:50]} 1-0


[Site "https://www.chess.com"]

[Event "Titled Tuesday Blitz March 08 Late 2022"]
[White "Thavandiran, Shiyam"]
[Black "Koellner, Ruben Gideon"]
[WhiteFideId "2605058"]
[BlackFideId "12993093"]
[WhiteElo "2357"]
[BlackElo "2474"]
[Result "0-1"]
[Round "11"]
[TimeControl "180+1"]
[Date "2022.03.08"]
[WhiteClock "0:00:01"]
[BlackClock "0:00:23"]

1. e4 {[%clk 0:02:58]}  d6 {[%clk 0:03:00]} 2. d4 {[%clk 0:02:58]}  Nf6 {[%clk 0:03:00]} 3. Nc3 {[%clk 0:02:56]}  e5 {[%clk 0:03:01]} 4. Nf3 {[%clk 0:02:52]}  Nbd7 {[%clk 0:03:01]} 5. Bc4 {[%clk 0:02:51]}  Be7 {[%clk 0:03:01]} 6. O-O {[%clk 0:02:49]}  c6 {[%clk 0:03:01]} 7. a4 {[%clk 0:02:49]}  h6 {[%clk 0:03:00]} 8. Re1 {[%clk 0:02:48]}  Qc7 {[%clk 0:03:00]} 9. b3 {[%clk 0:02:32]}  Nf8 {[%clk 0:02:54]} 10. Bb2 {[%clk 0:02:29]}  Ng6 {[%clk 0:02:53]} 11. h3 {[%clk 0:02:28]}  O-O {[%clk 0:02:51]} 12. Bf1 {[%clk 0:02:27]}  b6 {[%clk 0:02:49]} 13. d5 {[%clk 0:02:06]}  cxd5 {[%clk 0:02:40]} 14. Nxd5 {[%clk 0:02:05]}  Nxd5 {[%clk 0:02:38]} 15. Qxd5 {[%clk 0:02:06]}  Be6 {[%clk 0:02:23]} 16. Qd2 {[%clk 0:01:58]}  Rac8 {[%clk 0:02:19]} 17. c4 {[%clk 0:01:57]}  a6 {[%clk 0:02:19]} 18. g3 {[%clk 0:01:33]}  Rb8 {[%clk 0:02:18]} 19. h4 {[%clk 0:01:30]}  Rfc8 {[%clk 0:02:15]} 20. Qe3 {[%clk 0:01:18]}  Nf8 {[%clk 0:02:10]} 21. Nd2 {[%clk 0:01:09]}  Nd7 {[%clk 0:02:08]} 22. Nb1 {[%clk 0:00:59]}  Nc5 {[%clk 0:02:03]} 23. b4 {[%clk 0:00:53]}  Nd7 {[%clk 0:01:59]} 24. Rc1 {[%clk 0:00:51]}  a5 {[%clk 0:01:59]} 25. b5 {[%clk 0:00:27]}  Nc5 {[%clk 0:01:55]} 26. Nd2 {[%clk 0:00:27]}  Qd7 {[%clk 0:01:51]} 27. Bg2 {[%clk 0:00:26]}  Rf8 {[%clk 0:01:46]} 28. Re1 {[%clk 0:00:25]}  Rbc8 {[%clk 0:01:44]} 29. h5 {[%clk 0:00:21]}  Bg4 {[%clk 0:01:34]} 30. Bf3 {[%clk 0:00:20]}  Bg5 {[%clk 0:01:32]} 31. Qe2 {[%clk 0:00:20]}  Be6 {[%clk 0:01:20]} 32. Ra3 {[%clk 0:00:08]}  Bxd2 {[%clk 0:01:11]} 33. Qxd2 {[%clk 0:00:09]}  Bxc4 {[%clk 0:01:11]} 34. Bg2 {[%clk 0:00:10]}  Be6 {[%clk 0:01:07]} 35. f4 {[%clk 0:00:10]}  f6 {[%clk 0:00:59]} 36. Bf3 {[%clk 0:00:09]}  Rfd8 {[%clk 0:00:57]} 37. Rd1 {[%clk 0:00:08]}  Bg4 {[%clk 0:00:54]} 38. Qe2 {[%clk 0:00:08]}  Bxf3 {[%clk 0:00:52]} 39. Qxf3 {[%clk 0:00:09]}  Qb7 {[%clk 0:00:48]} 40. Re1 {[%clk 0:00:07]}  Re8 {[%clk 0:00:42]} 41. fxe5 {[%clk 0:00:06]}  dxe5 {[%clk 0:00:41]} 42. Bc1 {[%clk 0:00:06]}  Rcd8 {[%clk 0:00:40]} 43. Qg4 {[%clk 0:00:06]}  Qd7 {[%clk 0:00:39]} 44. Qe2 {[%clk 0:00:06]}  Qd4+ {[%clk 0:00:37]} 45. Kh2 {[%clk 0:00:05]}  Re7 {[%clk 0:00:29]} 46. Be3 {[%clk 0:00:05]}  Qxe4 {[%clk 0:00:25]} 47. Qa2+ {[%clk 0:00:05]}  Qd5 {[%clk 0:00:25]} 48. Rd1 {[%clk 0:00:03]}  Qxa2+ {[%clk 0:00:22]} 49. Rxa2 {[%clk 0:00:01]}  Rxd1 {[%clk 0:00:23]} 0-1


[Site "https://www.chess.com"]